fUSD/lending_fUSD_20251223
["ID","MTS","AMOUNT","RATE_DAILY","PERIOD"]
[399580480,1766520643916,-150.0,0.0002186,2]
[399580481,1766520643926,-150.0,0.00021865,2]
[399580482,1766520643936,-1000.0,0.00021868,2]
[399580483,1766520643946,-1000.0,0.00021874,2]
[399580484,1766520643956,-1000.0,0.00021878,2]
[399580485,1766520643966,-1000.0,0.00021879,2]
[399580486,1766520643975,-1000.0,0.00021881,2]
[399580487,1766520643985,-1000.0,0.00021884,2]
[399580488,1766520643995,-150.0,0.00021886,2]
[399580489,1766520644005,-1000.0,0.00021889,2]
[399580490,1766520644016,-1000.0,0.0002189,2]
[399580491,1766520644026,-1000.0,0.00021897,2]
[399580492,1766520644036,-1000.0,0.000219,2]
[399580493,1766520644046,-1000.0,0.00021907,2]
[399580494,1766520644055,-1000.0,0.0002191,2]
[399580495,1766520644066,-1000.0,0.00021914,2]
[399580496,1766520644076,-150.0,0.00021915,2]
[399580497,1766520644086,-300.0,0.00021917,2]
[399580498,1766520644096,-5000.0,0.00021918,2]
[399580499,1766520644106,-151.0,0.00021918,2]
[399580500,1766520644116,-246.351492,0.00021918,2]
[399580501,1766520644126,-181.75228,0.00021918,2]
[399580502,1766520644136,-181.75228,0.00021918,2]
[399580503,1766520644147,-181.75228,0.00021918,2]
[399580504,1766520644157,-181.75228,0.00021918,2]
[399580505,1766520644166,-181.75228,0.00021918,2]
[399580506,1766520644176,-181.75228,0.00021918,2]
[399580507,1766520644186,-181.75228,0.00021918,2]
[399580508,1766520644195,-181.75228,0.00021918,2]
[399580509,1766520644205,-151.0,0.00021918,2]
[399580510,1766520644217,-151.0,0.00021918,2]
[399580511,1766520644227,-154.0,0.00021918,2]
[399580512,1766520644237,-154.0,0.00021918,2]
[399580513,1766520644247,-164.0,0.00021918,2]
[399580514,1766520644256,-154.0,0.00021918,2]
[399580515,1766520644267,-164.0,0.00021918,2]
[399580516,1766520644278,-154.0,0.00021918,2]
[399580517,1766520644288,-164.0,0.00021918,2]
[399580518,1766520644298,-154.0,0.00021918,2]
[399580519,1766520644307,-172.8089718,0.00021918,2]
[399580520,1766520644317,-154.0,0.00021918,2]
[399580521,1766520644328,-154.0,0.00021918,2]
[399580522,1766520644338,-222.28977506,0.00021918,2]
[399580523,1766520644348,-157.81222692,0.00021918,2]
[399580524,1766520644357,-150.0,0.00021918,2]
[399580525,1766520644367,-500.0,0.00021918,2]
[399580526,1766520644377,-500.0,0.00021918,2]
[399580527,1766520644388,-1000.0,0.00021919,2]
[399580528,1766520644398,-1000.0,0.0002192,2]
[399580529,1766520644408,-150.0,0.0002192,2]
[399580530,1766520644419,-1000.0,0.0002193,2]
[399580531,1766520644429,-1000.0,0.00021939,2]
[399580532,1766520644444,-1000.0,0.00021941,2]
[399580533,1766520644454,-150.0,0.00021942,2]
[399580534,1766520644463,-150.0,0.00021945,2]
[399580535,1766520644474,-150.0,0.00021953,2]
[399580536,1766520644484,-150.0,0.00021955,2]
[399580537,1766520644494,-1000.0,0.00021957,2]
[399580538,1766520644505,-150.0,0.00021957,2]
[399580539,1766520644515,-1000.0,0.00021958,2]
[399580540,1766520644524,-1000.0,0.00021959,2]
[399580541,1766520644534,-150.0,0.00021964,2]
[399580542,1766520644544,-150.0,0.0002197,2]
[399580543,1766520644554,-150.0,0.00021971,2]
[399580544,1766520644563,-200.0,0.00021973,2]
[399580545,1766520644573,-1000.0,0.00021976,2]
[399580546,1766520644583,-1000.0,0.00021977,2]
[399580547,1766520644593,-1000.0,0.0002198,2]
[399580548,1766520644602,-1000.0,0.00021981,2]
[399580549,1766520644612,-150.0,0.00021981,2]
[399580550,1766520644621,-1000.0,0.00021982,2]
[399580551,1766520644631,-1000.0,0.0002199,2]
[399580552,1766520644641,-1280.0,0.00022,7]
[399580553,1766520644650,-208.62,0.00022,14]
[399580554,1766520644660,-20645.41,0.00022,7]
[399580555,1766520644669,-446.93,0.00022,2]
[399580556,1766520644679,-151.87941199,0.00022026,2]
[399580557,1766520644688,-553.43744098,0.00022341,2]
[399580558,1766520644698,-159.51,0.00022383,2]
[399580559,1766520644708,-289.92,0.00022486,2]
[399580560,1766520644718,-35376.52796969,0.000225,2]
[399580561,1766520644727,-180.03,0.00022526,2]
[399580562,1766520644737,-289.92,0.00022536,2]
[399580563,1766520644747,-273.36,0.00022552,2]
[399580564,1766520644756,-299.99,0.00022562,7]
[399580565,1766520644765,-150.99,0.00022562,2]
[399580566,1766520644775,-6503.45,0.00022562,2]
[399580567,1766520644785,-150.99,0.00022562,2]
[399580568,1766520644796,-180.03,0.00022571,2]
[399580569,1766520644807,-289.92,0.00022587,2]
[399580570,1766520644817,-5434.15526403,0.000226,5]
[399580578,1766520645812,-500.0,0.0002,2]
[399580579,1766520645823,-500.0,0.00020001,2]
[399580580,1766520645832,-500.0,0.00020002,2]
[399580581,1766520645842,-499.9999,0.00020003,2]
[399580582,1766520645852,-10360.39710794,0.000226,5]
[399580583,1766520645862,-217.81861623,0.000226,2]
[399580584,1766520645871,-187.20931039,0.000226,2]
[399580585,1766520645881,-180.03,0.00022616,2]
[399580586,1766520645891,-379.6,0.00022665,2]
[399580587,1766520645900,-1000.0,0.00022697,2]
[399580588,1766520645909,-521.32833471,0.0002271,2]
[399580589,1766520645919,-249.529338,0.00022744,2]
[399580590,1766520645929,-249.529338,0.00022744,2]
[399580591,1766520645938,-249.529338,0.00022744,2]
[399580592,1766520645947,-249.529338,0.00022744,2]
[399580593,1766520645957,-520.439628,0.00022744,2]
[399580594,1766520645967,-520.439628,0.00022744,2]
[399580595,1766520645976,-520.439628,0.00022744,2]
[399580596,1766520645985,-520.439628,0.00022744,2]
[399580597,1766520645994,-151.0,0.00022744,2]
[399580598,1766520646004,-151.0,0.00022744,2]
[399580599,1766520646014,-151.0,0.00022744,2]
[399580600,1766520646024,-151.0,0.00022744,2]
[399580601,1766520646034,-151.0,0.00022744,2]
[399580602,1766520646043,-151.0,0.00022744,2]
[399580603,1766520646053,-279.677654,0.00022744,2]
[399580604,1766520646062,-205.137399,0.00022744,2]
[399580605,1766520646071,-205.137399,0.00022744,2]
[399580606,1766520646081,-205.137399,0.00022744,2]
[399580607,1766520646091,-205.137399,0.00022744,2]
[399580608,1766520646101,-151.0,0.00022744,2]
[399580609,1766520646111,-151.0,0.00022744,2]
[399580610,1766520646120,-181.75228,0.00022758,2]
[399580612,1766520646130,-181.75228,0.00022758,2]
[399580614,1766520646140,-181.75228,0.00022758,2]
[399580615,1766520646149,-181.75228,0.00022758,2]
[399580616,1766520646159,-168.788972,0.00022758,2]
[399580617,1766520646168,-168.788972,0.00022758,2]
[399580618,1766520646178,-168.788972,0.00022758,2]
[399580619,1766520646188,-168.788972,0.00022758,2]
[399580620,1766520646198,-151.0,0.00022763,2]
[399580621,1766520646208,-495.84,0.00022802,2]
[399580622,1766520646219,-151.0,0.00022826,2]
[399580623,1766520646228,-161.529094,0.00022826,2]
[399580624,1766520646238,-322.5437854,0.00022941,2]
[399580625,1766520646251,-611.755986,0.00022941,2]
[399580627,1766520646279,-162.5202423,0.00022941,2]
[399580628,1766520646468,-1975.1799863,0.00022941,2]
[399580629,1766520646479,-169.0,0.00023,7]
[399580630,1766520646488,-169.0,0.00023052,120]
[399580631,1766520646498,-151.0,0.00023067,2]
[399580632,1766520646510,-500.0,0.00023157,2]
[399580633,1766520646519,-151.0,0.00023165,2]
[399580634,1766520646530,-156.210442,0.00023165,2]
[399580635,1766520646539,-151.0,0.00023165,2]
[399580636,1766520646548,-151.0,0.00023165,2]
[399580637,1766520646558,-20645.41,0.000232,7]
[399580638,1766520646568,-151.0,0.000232,2]
[399580639,1766520646577,-151.0,0.000232,2]
[399580640,1766520646587,-151.0,0.000232,2]
[399580641,1766520646597,-151.0,0.000232,2]
[399580642,1766520646607,-151.0,0.000232,2]
[399580643,1766520646616,-151.0,0.000232,2]
[399580644,1766520646626,-151.0,0.000232,2]
[399580645,1766520646635,-151.0,0.000232,2]
[399580646,1766520646644,-182.145978,0.000232,2]
[399580648,1766520646654,-151.0,0.000232,2]
[399580650,1766520646663,-160.832815,0.000232,2]
[399580652,1766520646672,-151.0,0.000232,2]
[399580653,1766520646682,-160.832815,0.000232,2]
[399580654,1766520646691,-160.832815,0.000232,2]
[399580655,1766520646701,-160.832815,0.000232,2]
[399580656,1766520646710,-151.0,0.000232,2]
[399580657,1766520646719,-151.0,0.000232,2]
[399580658,1766520646728,-151.0,0.000232,2]
[399580659,1766520646737,-151.0,0.000232,2]
[399580660,1766520646746,-224.705192,0.000232,2]
[399580661,1766520646755,-224.705192,0.000232,2]
[399580662,1766520646764,-224.705192,0.000232,2]
[399580663,1766520646774,-224.705192,0.000232,2]
[399580664,1766520646783,-217.81861623,0.00023323,6]
[399580665,1766520646792,-150.0,0.0002333,2]
[399580666,1766520646802,-1020.24562887,0.0002336,2]
[399580667,1766520646814,-964.8,0.0002336,2]
[399580668,1766520646825,-419.99999999,0.0002336,2]
[399580670,1766520687371,-297.26,0.00011488,2]
[399580671,1766520687396,-202.74,0.00012092,2]
[399580672,1766520690455,-94.52,0.00012092,2]
[399580673,1766520690478,-142.64760672,0.00012697,2]
[399580674,1766520692011,-152.23524303,0.00012697,2]
[399580675,1766520695133,-2.37715025,0.00012697,2]
[399580676,1766520695157,-297.26,0.00013302,2]
[399580677,1766520695181,-2.36284975,0.00013906,2]
[399580678,1766520697879,-185.98743255,0.00013906,2]
[399580679,1766520699592,-108.9097177,0.00013906,2]
[399580680,1766520699617,-137.14717324,0.00014511,2]
[399580809,1766521314015,-160.11282676,0.00014511,2]
[399580810,1766521314049,-250.0,0.00014813,2]
[399580811,1766521314081,-297.26,0.00015116,2]
[399580812,1766521314112,-1566.647693,0.00015231,2]
[399580813,1766521314142,-251.64087733,0.00015385,2]
[399580814,1766521314183,-251.64087733,0.00015456,2]
[399580815,1766521314218,-300.0,0.00015525,2]
[399580816,1766521314251,-164.0,0.00015526,2]
[399580817,1766521314285,-1200.0,0.00015526,2]
[399580818,1766521314317,-300.0,0.00015526,2]
[399580819,1766521314348,-150.0,0.00015526,2]
[399580820,1766521314618,-646.329,0.00015526,2]
[399580821,1766521314994,-1053.98973007,0.00015526,2]
[399580822,1766521315047,-10000.01,0.00015526,2]
[399580823,1766521315063,-10000.01,0.00015526,2]
[399580824,1766521315105,-10000.01,0.00015526,2]
[399580825,1766521315227,-4324.14513007,0.00015526,2]
[399580826,1766521315254,-1351.71973986,0.00015526,2]
[399580827,1766521315349,-251.64087733,0.00015527,2]
[399580828,1766521315382,-2915.26574976,0.00015527,2]
[399580829,1766521315427,-3666.19674582,0.00015527,2]
[399580832,1766521316965,-345.89840063,0.00015527,2]
[399580833,1766521316997,-273.10270995,0.00015527,2]
[399580834,1766521317030,-151.0,0.00015618,2]
[399580835,1766521317067,-151.0,0.00015618,2]
[399580836,1766521317102,-151.0,0.00015618,2]
[399580837,1766521317135,-151.0,0.00015618,2]
[399580838,1766521317167,-151.0,0.00015618,2]
[399580839,1766521317199,-151.0,0.00015618,2]
[399580840,1766521317230,-151.0,0.00015618,2]
[399580841,1766521317263,-151.0,0.00015618,2]
[399580842,1766521317295,-151.0,0.00015618,2]
[399580843,1766521317327,-151.0,0.00015618,2]
[399580844,1766521317358,-151.0,0.00015618,2]
[399580845,1766521317390,-151.0,0.00015618,2]
[399580846,1766521317423,-151.0,0.00015618,2]
[399580847,1766521317453,-187.52365268,0.00015618,2]
[399580848,1766521317488,-500.0,0.00015625,2]
[399580849,1766521317520,-306.1845422,0.00015625,2]
[399580850,1766521317554,-500.0,0.00015625,2]
[399580851,1766521317588,-500.0,0.00015625,2]
[399580852,1766521317623,-348.59138908,0.00015625,2]
[399580853,1766521317715,-151.40861092,0.00015625,2]
[399580854,1766521317748,-500.0,0.00015625,2]
[399580855,1766521317781,-500.0,0.00015625,2]
[399580856,1766521317814,-500.0,0.00015625,2]
[399580857,1766521317847,-500.0,0.00015625,2]
[399580858,1766521317882,-500.0,0.00015625,2]
[399580859,1766521317916,-500.0,0.00015625,2]
[399580860,1766521317950,-500.0,0.00015625,2]
[399580861,1766521317984,-500.0,0.00015625,2]
[399580862,1766521318018,-500.0,0.00015625,2]
[399580863,1766521318051,-197.19277816,0.00015625,2]
[399580864,1766521318520,-302.80722184,0.00015625,2]
[399580865,1766521318555,-500.0,0.00015625,2]
[399580866,1766521318588,-500.0,0.00015625,2]
[399580867,1766521318623,-500.0,0.00015625,2]
[399580868,1766521318656,-500.0,0.00015625,2]
[399580869,1766521318690,-500.0,0.00015625,2]
[399580870,1766521318723,-500.0,0.00015625,2]
[399580871,1766521318756,-549.41336829,0.00015625,2]
[399580872,1766521318787,-500.0,0.00015625,2]
[399580873,1766521318817,-500.0,0.00015625,2]
[399580874,1766521318847,-87.08701986,0.00015625,2]
[399580876,1766521318952,-121.39478002,0.00015625,2]
[399580877,1766521318981,-587.94621572,0.00015625,2]
[399580878,1766521319014,-500.0,0.00015625,2]
[399580879,1766521319048,-500.0,0.00015625,2]
[399580880,1766521319077,-470.1815403,0.00015625,2]
[399580881,1766521319105,-500.0,0.00015625,2]
[399580882,1766521319136,-500.0,0.00015625,2]
[399580883,1766521319164,-343.55229028,0.00015625,2]
[399580884,1766521319195,-500.0,0.00015625,2]
[399580885,1766521319223,-150.0,0.00015625,2]
[399580886,1766521320067,-67.63019101,0.00015626,2]
[399580887,1766521320082,-500.0,0.00015626,2]
[399580888,1766521320101,-150.0,0.00015626,2]
[399580889,1766521320115,-1653.86034736,0.00015626,2]
[399580890,1766521320135,-10000.01,0.00015626,2]
[399580891,1766521320218,-10000.01,0.00015626,2]
[399580892,1766521320255,-10000.01,0.00015626,2]
[399580893,1766521320316,-10000.01,0.00015626,2]
[399580894,1766521320426,-10000.01,0.00015626,2]
[399580895,1766521320539,-10000.01,0.00015626,2]
[399580896,1766521320668,-10000.01,0.00015626,2]
[399580897,1766521320775,-10000.01,0.00015626,2]
[399580905,1766521341288,-300.0,0.00015625,2]
[399580906,1766521341327,-9400.01,0.00015626,2]
[399580907,1766521341522,-10000.01,0.00015626,2]
[399580908,1766521341646,-10000.01,0.00015626,2]
[399580909,1766521341761,-10000.01,0.00015626,2]
[399580910,1766521341881,-10000.01,0.00015626,2]
[399580911,1766521342018,-10000.01,0.00015626,2]
[399580912,1766521342143,-10000.01,0.00015626,2]
[399580913,1766521347251,-10000.01,0.00015626,2]
[399580914,1766521347396,-10000.01,0.00015626,2]
[399580915,1766521347488,-10000.01,0.00015626,2]
[399580916,1766521347606,-10000.01,0.00015626,2]
[399580917,1766521347732,-10000.01,0.00015626,2]
[399580918,1766521347889,-10000.01,0.00015626,2]
[399580919,1766521348005,-10000.01,0.00015626,2]
[399580920,1766521396862,-300.0,0.00015625,2]
[399580921,1766521396891,-1200.0,0.00015625,2]
[399580922,1766521396924,-591.82021517,0.00015625,2]
[399580923,1766521396956,-500.0,0.00015625,2]
[399580924,1766521396985,-354.83497091,0.00015625,2]
[399580925,1766521397014,-500.0,0.00015625,2]
[399580926,1766521397045,-313.67571038,0.00015625,2]
[399580927,1766521397080,-500.0,0.00015625,2]
[399580928,1766521397113,-500.0,0.00015625,2]
[399580929,1766521397298,-479.34820708,0.00015625,2]
[399580930,1766521402842,-20.65179292,0.00015625,2]
[399580931,1766521402877,-500.0,0.00015625,2]
[399580932,1766521402912,-500.0,0.00015625,2]
[399580933,1766521402945,-350.46281355,0.00015625,2]
[399580934,1766521402979,-500.0,0.00015625,2]
[399580935,1766521403012,-500.0,0.00015625,2]
[399580936,1766521403046,-500.0,0.00015625,2]
[399580937,1766521403080,-500.0,0.00015625,2]
[399580938,1766521403113,-500.0,0.00015625,2]
[399580939,1766521403333,-2257.78078706,0.00015626,2]
[399580940,1766521409020,-10000.01,0.00015626,2]
[399580941,1766521448291,4029.362923,7.945e-05,2]
[399580966,1766521711439,10945.75,0.000205,120]
[399580969,1766521805177,169.0,0.0002091,120]
[399580970,1766521806433,169.0,0.00021956,120]
[399580979,1766521831803,-278.0,0.00015348,2]
[399580981,1766521831813,-1821.820218,0.00015348,2]
[399580982,1766521831823,-126.079782,0.00015426,2]
[399580983,1766521831835,-156.524218,0.00015426,2]
[399580984,1766521831844,-371.8407807,0.00015526,2]
[399580985,1766521831853,-1200.0,0.00015526,2]
[399580986,1766521831863,-300.0,0.00015526,2]
[399580987,1766521831873,-2500.0,0.00015526,2]
[399580988,1766521831882,-319.24580307,0.00015527,2]
[399580989,1766521831893,-34.942628,0.00015527,2]
[399580990,1766521831903,-300.0,0.00015624,2]
[399580991,1766521831912,-0.32317745,0.00015625,2]
[399580992,1766521831954,-999.67682255,0.00015625,2]
[399580993,1766521831963,-969.61981694,0.00015625,5]
[399580994,1766521831974,-124.81973692,0.00015625,5]
[399580995,1766521831983,-500.0,0.00015625,2]
[399580996,1766521831992,-306.32786834,0.00015625,2]
[399580997,1766521832001,-500.0,0.00015625,2]
[399580998,1766521832011,-500.0,0.00015625,2]
[399580999,1766521832020,-500.0,0.00015625,2]
[399581000,1766521832029,-500.0,0.00015625,2]
[399581001,1766521832040,-500.0,0.00015625,2]
[399581002,1766521832049,-500.0,0.00015625,2]
[399581003,1766521832058,-500.0,0.00015625,2]
[399581004,1766521832068,-379.15297197,0.00015625,2]
[399581005,1766521832078,-500.0,0.00015625,2]
[399581006,1766521832087,-500.0,0.00015625,2]
[399581007,1766521832097,-507.32731523,0.00015625,2]
[399581008,1766521832107,-393.21390701,0.00015625,2]
[399581009,1766521832116,-500.0,0.00015625,2]
[399581010,1766521832125,-500.0,0.00015625,2]
[399581011,1766521832135,-500.0,0.00015625,2]
[399581013,1766521832145,-200.0,0.00015625,2]
[399581015,1766521832155,-500.0,0.00015625,2]
[399581016,1766521832164,-500.0,0.00015625,2]
[399581017,1766521832173,-71910.67260818,0.00015626,2]
[399581018,1766521832189,-284.77163,0.00015626,2]
[399581020,1766521832201,-6806.35260329,0.00015626,2]
[399581023,1766521832219,-1014.02545008,0.00015626,2]
[399581037,1766521837900,-356.0188694,0.00015626,2]
[399581038,1766521837912,-64113.43996099,0.00015626,2]
[399581039,1766521837922,-193.0,0.00015626,2]
[399581040,1766521837932,-1545.45626587,0.00015626,2]
[399581041,1766521837942,-166858.1910984,0.00015626,2]
[399581042,1766521837952,-4617.8421111,0.00015626,2]
[399581043,1766521837962,-200.0,0.00015626,2]
[399581044,1766521837972,-731866.1729676,0.00015626,2]
[399581045,1766521837981,-443.85292262,0.00015626,2]
[399581046,1766521837991,-151.0,0.00015626,2]
[399581047,1766521838000,-151.0,0.00015626,2]
[399581048,1766521838010,-151.0,0.00015626,2]
[399581049,1766521838020,-31004.4762,0.00015627,2]
[399581050,1766521838030,-151.61,0.00015627,2]
[399581051,1766521838040,-297.26,0.0001572,2]
[399581052,1766521838050,-200.0,0.00015782,2]
[399581053,1766521838060,-500.0,0.00015926,2]
[399581054,1766521838070,-500.0,0.00015926,2]
[399581055,1766521838080,-500.0,0.00015926,2]
[399581056,1766521838090,-500.0,0.00015926,2]
[399581057,1766521838100,-500.0,0.00015926,2]
[399581058,1766521838109,-200.0,0.0001594,2]
[399581059,1766521838119,-151.0,0.00015964,2]
[399581060,1766521838129,-403.81516004,0.0001599,2]
[399581061,1766521838139,-71385.60526,0.00016,2]
[399581062,1766521838148,-43075.79939415,0.00016,4]
[399581063,1766521838158,-200.0,0.00016099,2]
[399581064,1766521838168,-165.82568429,0.00016186,2]
[399581065,1766521838178,-574.12855637,0.00016186,2]
[399581067,1766521838187,-151.0,0.00016186,2]
[399581068,1766521838197,-500.0,0.00016186,2]
[399581069,1766521838207,-500.0,0.00016186,2]
[399581070,1766521838217,-151.0,0.00016186,2]
[399581071,1766521838227,-200.0,0.00016186,2]
[399581072,1766521838238,-207.4,0.00016186,2]
[399581074,1766521838248,-209.28269871,0.00016186,2]
[399581076,1766521838258,-322.6107,0.00016186,2]
[399581078,1766521838267,-200.0,0.0001626,2]
[399581079,1766521838277,-297.26,0.00016325,2]
[399581081,1766521838288,-200.0,0.0001634,2]
[399581082,1766521838298,-500.0,0.00016373,2]
[399581083,1766521838308,-500.0,0.00016373,2]
[399581084,1766521838318,-500.0,0.00016438,2]
[399581085,1766521838328,-462.52443725,0.00016438,2]
[399581087,1766521838338,-500.0,0.00016438,2]
[399581089,1766521838348,-500.0,0.00016438,2]
[399581091,1766521838358,-296.44794175,0.00016438,2]
[399581092,1766521838368,-500.0,0.00016438,2]
[399581093,1766521838379,-500.0,0.00016438,2]
[399581094,1766521838389,-500.0,0.00016438,2]
[399581095,1766521838399,-500.0,0.00016438,2]
[399581096,1766521838409,-500.0,0.00016438,2]
[399581097,1766521838419,-500.0,0.00016438,2]
[399581098,1766521838428,-500.0,0.00016438,2]
[399581099,1766521838438,-500.0,0.00016438,2]
[399581100,1766521838448,-500.0,0.00016438,2]
[399581101,1766521838458,-500.0,0.00016438,2]
[399581102,1766521838468,-500.0,0.00016438,2]
[399581103,1766521838478,-500.0,0.00016438,2]
[399581104,1766521838488,-500.0,0.00016438,2]
[399581105,1766521838498,-500.0,0.00016438,2]
[399581106,1766521838508,-500.0,0.00016438,2]
[399581107,1766521838518,-500.0,0.00016438,2]
[399581108,1766521838528,-500.0,0.00016438,2]
[399581109,1766521838538,-3006.02,0.00016438,2]
[399581110,1766521838547,-800.0,0.00016438,2]
[399581111,1766521838557,-595.37131296,0.00016734,2]
[399581112,1766521838567,-151.0,0.00016734,2]
[399581113,1766521838578,-510.0,0.00016749,2]
[399581114,1766521838588,-341.52097155,0.000169,2]
[399581115,1766521838597,-1000.0,0.00016921,2]
[399581116,1766521838607,-1000.0,0.00016921,2]
[399581117,1766521838617,-297.26,0.0001693,2]
[399581118,1766521838626,-500.0,0.00016972,2]
[399581119,1766521838636,-500.0,0.00016972,2]
[399581120,1766521838646,-195.92330152,0.00016973,2]
[399581121,1766521838656,-500.0,0.00016973,2]
[399581122,1766521838666,-500.0,0.00016973,2]
[399581123,1766521838676,-500.0,0.00016973,2]
[399581124,1766521838686,-501.99535785,0.00016973,2]
[399581125,1766521838695,-162.32244803,0.00016973,2]
[399581126,1766521838705,-500.0,0.00016973,2]
[399581127,1766521838715,-452.51812449,0.00016973,2]
[399581128,1766521838725,-500.0,0.00016973,2]
[399581129,1766521838735,-500.0,0.00016973,2]
[399581130,1766521838745,-500.0,0.00016973,2]
[399581131,1766521838755,-500.0,0.00016973,2]
[399581132,1766521838768,-575.79192848,0.00016973,2]
[399581133,1766521838778,-500.0,0.00016973,2]
[399581134,1766521838788,-500.77244015,0.00016973,2]
[399581135,1766521838798,-274.50215174,0.00016973,2]
[399581136,1766521838810,-500.0,0.00016973,2]
[399581137,1766521838819,-500.0,0.00016973,2]
[399581138,1766521838829,-500.0,0.00016973,2]
[399581139,1766521838841,-500.0,0.00016973,2]
[399581140,1766521838854,-500.0,0.00016973,2]
[399581141,1766521838864,-500.0,0.00016973,2]
[399581142,1766521838874,-511.36256137,0.00016973,2]
[399581143,1766521838884,-500.0,0.00016973,2]
[399581144,1766521838894,-500.0,0.00016973,2]
[399581145,1766521838904,-500.0,0.00016973,2]
[399581146,1766521838913,-160.24000701,0.00016973,2]
[399581147,1766521838923,-500.0,0.00016973,2]
[399581148,1766521838932,-160.24081574,0.00016973,2]
[399581149,1766521838942,-177.58211641,0.00016973,2]
[399581150,1766521838953,-154.81071554,0.00016973,2]
[399581151,1766521838963,-500.0,0.00016973,2]
[399581152,1766521838973,-420.0,0.00016983,2]
[399581153,1766521838983,-25139.28,0.00016986,2]
[399581154,1766521838994,-250.0,0.00016993,2]
[399581155,1766521839004,-500.0,0.00016999,2]
[399581156,1766521839014,-500.0,0.00016999,2]
[399581157,1766521839024,-500.0,0.00016999,2]
[399581158,1766521839034,-500.0,0.00016999,2]
[399581159,1766521839044,-516.24,0.00016999,2]
[399581160,1766521839053,-300.0,0.00016999,2]
[399581161,1766521839063,-300.0,0.00016999,2]
[399581162,1766521839074,-666.0,0.00016999,2]
[399581163,1766521839084,-500.0,0.00016999,2]
[399581164,1766521839094,-500.0,0.00016999,2]
[399581165,1766521839103,-500.0,0.00016999,2]
[399581166,1766521839114,-500.0,0.00016999,2]
[399581167,1766521839124,-500.0,0.00016999,2]
[399581168,1766521839135,-300.0,0.00016999,2]
[399581169,1766521839145,-250.0,0.00017,2]
[399581170,1766521839156,-1040384.01821852,0.00017,2]
[399581171,1766521839195,-1086.8797393,0.00017,2]
[399581172,1766521839207,-385.48350967,0.00017,2]
[399581173,1766521839219,-593.27536952,0.00017,2]
[399581174,1766521839231,-18076.96787804,0.00017,2]
[399581175,1766521839242,-624.134,0.00017,2]
[399581176,1766521839923,-445.1252,0.00017,2]
[399581177,1766521839976,-474.61882555,0.00017,2]
[399581178,1766521839988,-801.50537532,0.00017,2]
[399581179,1766521840000,-413.34390659,0.00017,2]
[399581180,1766521840012,-1036.6546145,0.00017,2]
[399581181,1766521840025,-443.58598797,0.00017,2]
[399581182,1766521840037,-448.65345497,0.00017,2]
[399581183,1766521840420,-151.00000017,0.00017,2]
[399581190,1766521843120,-26220.84080366,0.00017,2]
[399581191,1766521843133,-1186.55161952,0.00017,2]
[399581192,1766521843175,-7272.30772007,0.00017,2]
[399581193,1766521843233,-15135.09587023,0.00017,2]
[399581195,1766521845947,-1587.635991,0.00017,2]
[399581196,1766521845959,-521.50544742,0.00017,2]
[399581197,1766521846004,-332031.74651871,0.00017,2]
[399581198,1766521846016,-540.52,0.00017,2]
[399581199,1766521846229,-2164.14465,0.00017,2]